[Event "*** Titled Tuesday Blitz"]
[Site "Chess.com"]
[Date "2019.09.03"]
[Round "3"]
[White "wannabe2700"]
[Black "Walter_White_Poland"]
[Result "0-1"]
[WhiteElo "2539"]
[BlackElo "2327"]
[TimeControl "180+2"]
[EndTime "15:39:57 PDT"]
[Termination "Walter_White_Poland won by checkmate"]

1. c4 {[%clk 0:03:01.9]} 1... c5 {[%clk 0:02:59.4]} 2. Nf3 {[%clk 0:03:00.4]}
2... Nc6 {[%clk 0:02:59.9]} 3. Nc3 {[%clk 0:03:01.7]} 3... Nd4 {[%clk
0:03:00.4]} 4. e3 {[%clk 0:02:51.4]} 4... Nxf3+ {[%clk 0:03:00.4]} 5. Qxf3
{[%clk 0:02:50.6]} 5... Nf6 {[%clk 0:03:01.8]} 6. d4 {[%clk 0:02:51.2]} 6... d6
{[%clk 0:03:02.5]} 7. Bd3 {[%clk 0:02:47]} 7... g6 {[%clk 0:03:02.5]} 8. O-O
{[%clk 0:02:44.7]} 8... Bg7 {[%clk 0:03:03.2]} 9. Ne4 {[%clk 0:02:40]} 9... Nxe4
{[%clk 0:02:36]} 10. Bxe4 {[%clk 0:02:40.6]} 10... Qc7 {[%clk 0:02:36]} 11. b3
{[%clk 0:02:16.5]} 11... O-O {[%clk 0:02:33.6]} 12. Bb2 {[%clk 0:02:16.7]} 12...
Rb8 {[%clk 0:02:23.6]} 13. Rfd1 {[%clk 0:02:16.1]} 13... a6 {[%clk 0:01:57.9]}
14. Qe2 {[%clk 0:02:09.5]} 14... Be6 {[%clk 0:01:09.9]} 15. dxc5 {[%clk
0:01:57.1]} 15... dxc5 {[%clk 0:01:08.7]} 16. Bxg7 {[%clk 0:01:56]} 16... Kxg7
{[%clk 0:01:09.8]} 17. Bd5 {[%clk 0:01:50.9]} 17... Bf5 {[%clk 0:00:31.2]} 18.
e4 {[%clk 0:01:40.3]} 18... Bd7 {[%clk 0:00:30.9]} 19. e5 {[%clk 0:01:40.9]}
19... Bc6 {[%clk 0:00:21.7]} 20. e6 {[%clk 0:01:39.6]} 20... Bxd5 {[%clk
0:00:20.9]} 21. Rxd5 {[%clk 0:01:39.6]} 21... Qf4 {[%clk 0:00:10.1]} 22. Rxc5
{[%clk 0:01:33.2]} 22... fxe6 {[%clk 0:00:11.1]} 23. Re1 {[%clk 0:01:27.2]}
23... Rf6 {[%clk 0:00:10.5]} 24. g3 {[%clk 0:01:24.8]} 24... Qd4 {[%clk
0:00:10.2]} 25. Re5 {[%clk 0:01:25]} 25... Rbf8 {[%clk 0:00:09.9]} 26. Rf1
{[%clk 0:01:22.7]} 26... Rxf2 {[%clk 0:00:08.7]} 27. Rxf2 {[%clk 0:01:23.2]}
27... Rxf2 {[%clk 0:00:09.7]} 28. Qxf2 {[%clk 0:01:24.3]} 28... Qxe5 {[%clk
0:00:10.9]} 29. Kf1 {[%clk 0:01:20.8]} 29... Qf5 {[%clk 0:00:10.2]} 30. Kg2
{[%clk 0:01:18.4]} 30... Qe4+ {[%clk 0:00:09.4]} 31. Kh3 {[%clk 0:01:18.5]}
31... h5 {[%clk 0:00:08.6]} 32. Qb2+ {[%clk 0:01:17.3]} 32... Kf7 {[%clk
0:00:08.3]} 33. Qf2+ {[%clk 0:01:15.9]} 33... Qf5+ {[%clk 0:00:08.8]} 34. Kg2
{[%clk 0:01:16.7]} 34... Ke8 {[%clk 0:00:09.9]} 35. Qf3 {[%clk 0:01:11.9]} 35...
Qc2+ {[%clk 0:00:10]} 36. Kh3 {[%clk 0:01:12.8]} 36... Qf5+ {[%clk 0:00:10.5]}
37. Kg2 {[%clk 0:01:13.8]} 37... Qc2+ {[%clk 0:00:11]} 38. Kg1 {[%clk
0:01:15.1]} 38... Qb1+ {[%clk 0:00:10.9]} 39. Kg2 {[%clk 0:01:11.5]} 39... Qxa2+
{[%clk 0:00:11.5]} 40. Kh3 {[%clk 0:01:13]} 40... Qc2 {[%clk 0:00:10.9]} 41.
Qxb7 {[%clk 0:01:12.5]} 41... Qf5+ {[%clk 0:00:11.2]} 42. Kg2 {[%clk 0:01:14.1]}
42... Qc2+ {[%clk 0:00:11.9]} 43. Kf3 {[%clk 0:01:15.6]} 43... Qd3+ {[%clk
0:00:12]} 44. Kf4 {[%clk 0:01:17]} 44... Qd2+ {[%clk 0:00:10.8]} 45. Ke5 {[%clk
0:01:05.1]} 45... Qe3+ {[%clk 0:00:11.6]} 46. Qe4 {[%clk 0:01:06.4]} 46... Qxb3
{[%clk 0:00:11.3]} 47. Qxg6+ {[%clk 0:00:56.5]} 47... Kd8 {[%clk 0:00:10.8]} 48.
Qg8+ {[%clk 0:00:54.7]} 48... Kc7 {[%clk 0:00:09.7]} 49. Qxe6 {[%clk 0:00:54.2]}
49... Qe3+ {[%clk 0:00:10.1]} 50. Kf5 {[%clk 0:00:54.5]} 50... Qxe6+ {[%clk
0:00:11.2]} 51. Kxe6 {[%clk 0:00:56.4]} 51... a5 {[%clk 0:00:11.3]} 52. Kd5
{[%clk 0:00:51.9]} 52... a4 {[%clk 0:00:08.6]} 53. Kd4 {[%clk 0:00:52.9]} 53...
e5+ {[%clk 0:00:09.6]} 54. Kc3 {[%clk 0:00:50.6]} 54... e4 {[%clk 0:00:10.2]}
55. h3 {[%clk 0:00:49.3]} 55... e3 {[%clk 0:00:10]} 56. g4 {[%clk 0:00:50.4]}
56... e2 {[%clk 0:00:10]} 57. Kd2 {[%clk 0:00:51.5]} 57... a3 {[%clk 0:00:10.7]}
58. gxh5 {[%clk 0:00:50.2]} 58... a2 {[%clk 0:00:11.4]} 59. Kxe2 {[%clk
0:00:51.7]} 59... a1=Q {[%clk 0:00:11.6]} 60. Kf3 {[%clk 0:00:53.3]} 60... Qf6+
{[%clk 0:00:11.8]} 61. Kg4 {[%clk 0:00:54.7]} 61... Kd6 {[%clk 0:00:12.6]} 62.
c5+ {[%clk 0:00:55.5]} 62... Kxc5 {[%clk 0:00:13.6]} 63. h4 {[%clk 0:00:54.4]}
63... Kd5 {[%clk 0:00:14.1]} 64. Kg3 {[%clk 0:00:55.6]} 64... Qh6 {[%clk
0:00:14]} 65. Kg4 {[%clk 0:00:56.7]} 65... Ke5 {[%clk 0:00:14.9]} 66. Kh3 {[%clk
0:00:57.4]} 66... Qxh5 {[%clk 0:00:15.9]} 67. Kg3 {[%clk 0:00:58.7]} 67... Ke4
{[%clk 0:00:16.6]} 68. Kh3 {[%clk 0:00:54]} 68... Kf3 {[%clk 0:00:17]} 69. Kh2
{[%clk 0:00:54.9]} 69... Qxh4+ {[%clk 0:00:18.1]} 70. Kg1 {[%clk 0:00:55.8]}
70... Qg3+ {[%clk 0:00:19.1]} 71. Kh1 {[%clk 0:00:56.1]} 71... Qg2# {[%clk
0:00:19.7]} 0-1

[Event "*** Titled Tuesday Blitz"]
[Site "Chess.com"]
[Date "2019.09.03"]
[Round "3"]
[White "hansen"]
[Black "riconaipe"]
[Result "1-0"]
[WhiteElo "2868"]
[BlackElo "2574"]
[TimeControl "180+2"]
[EndTime "15:40:25 PDT"]
[Termination "hansen won by resignation"]

1. e4 {[%clk 0:03:01.9]} 1... c6 {[%clk 0:03:01]} 2. d4 {[%clk 0:03:02.7]} 2...
d5 {[%clk 0:03:02.6]} 3. e5 {[%clk 0:03:04.6]} 3... g6 {[%clk 0:03:03]} 4. c3
{[%clk 0:03:03.3]} 4... Bg7 {[%clk 0:03:03.9]} 5. h4 {[%clk 0:03:04.7]} 5... f6
{[%clk 0:03:04.2]} 6. exf6 {[%clk 0:03:02.1]} 6... exf6 {[%clk 0:03:04.6]} 7. h5
{[%clk 0:03:03.1]} 7... Qe7+ {[%clk 0:02:59]} 8. Be3 {[%clk 0:03:03.1]} 8... f5
{[%clk 0:02:56.6]} 9. Ne2 {[%clk 0:03:00.9]} 9... Nf6 {[%clk 0:02:56.4]} 10.
hxg6 {[%clk 0:02:58.9]} 10... hxg6 {[%clk 0:02:57]} 11. Rxh8+ {[%clk 0:03:00.8]}
11... Bxh8 {[%clk 0:02:58]} 12. Nd2 {[%clk 0:03:02.5]} 12... Nbd7 {[%clk
0:02:53.2]} 13. Nf4 {[%clk 0:03:00.6]} 13... Nf8 {[%clk 0:02:54.3]} 14. Ne2
{[%clk 0:02:08.1]} 14... Bd7 {[%clk 0:02:49]} 15. Nf3 {[%clk 0:02:07.7]} 15...
Ng4 {[%clk 0:02:45.9]} 16. Bg5 {[%clk 0:02:06.7]} 16... Bf6 {[%clk 0:02:46.2]}
17. Bxf6 {[%clk 0:02:05.7]} 17... Qxf6 {[%clk 0:02:47.3]} 18. Qd2 {[%clk
0:02:04.5]} 18... O-O-O {[%clk 0:02:48.3]} 19. Qg5 {[%clk 0:02:05.9]} 19... Qd6
{[%clk 0:02:29.1]} 20. Qf4 {[%clk 0:02:01.2]} 20... Qxf4 {[%clk 0:02:24.6]} 21.
Nxf4 {[%clk 0:02:02]} 21... Re8+ {[%clk 0:02:26.3]} 22. Be2 {[%clk 0:02:02.3]}
22... b6 {[%clk 0:02:14.5]} 23. Kf1 {[%clk 0:01:57.6]} 23... Nf6 {[%clk
0:02:02.1]} 24. Ne5 {[%clk 0:01:55.7]} 24... g5 {[%clk 0:01:59]} 25. Nh5 {[%clk
0:01:48.4]} 25... Nxh5 {[%clk 0:02:00]} 26. Bxh5 {[%clk 0:01:50.3]} 26... Re7
{[%clk 0:02:00.7]} 27. Re1 {[%clk 0:01:37.4]} 27... Rh7 {[%clk 0:01:52.6]} 28.
Bf7 {[%clk 0:01:10.5]} 28... f4 {[%clk 0:01:30.8]} 29. Ke2 {[%clk 0:00:57.4]}
29... Kc7 {[%clk 0:01:27.9]} 30. Bg6 {[%clk 0:00:46.7]} 30... Rg7 {[%clk
0:01:16.8]} 31. Bc2 {[%clk 0:00:44.9]} 31... c5 {[%clk 0:01:11.8]} 32. Rh1
{[%clk 0:00:41.9]} 32... Ne6 {[%clk 0:01:06.4]} 33. Nxd7 {[%clk 0:00:33.7]}
33... Rxd7 {[%clk 0:01:06.7]} 34. dxc5 {[%clk 0:00:31.9]} 34... Nxc5 {[%clk
0:01:02.4]} 35. Rd1 {[%clk 0:00:27.7]} 35... Kc6 {[%clk 0:00:55.2]} 36. Kf3
{[%clk 0:00:28.7]} 36... Re7 {[%clk 0:00:54.4]} 37. a4 {[%clk 0:00:22.7]} 37...
a6 {[%clk 0:00:51]} 38. Rh1 {[%clk 0:00:19.9]} 38... Ne6 {[%clk 0:00:26.4]} 39.
Rh6 {[%clk 0:00:19.7]} 39... Kc5 {[%clk 0:00:27.6]} 40. Bd3 {[%clk 0:00:19.5]}
40... a5 {[%clk 0:00:21.3]} 41. Rg6 {[%clk 0:00:18]} 41... d4 {[%clk 0:00:22.3]}
42. Bf5 {[%clk 0:00:18.3]} 42... dxc3 {[%clk 0:00:17.5]} 43. bxc3 {[%clk
0:00:13.7]} 43... Nc7 {[%clk 0:00:17.8]} 44. Rxg5 {[%clk 0:00:13.1]} 44... Kc4
{[%clk 0:00:15.7]} 45. Rg6 {[%clk 0:00:13.3]} 45... Kxc3 {[%clk 0:00:13.5]} 46.
Rxb6 {[%clk 0:00:13.7]} 46... Nd5 {[%clk 0:00:14.5]} 47. Rb5 {[%clk 0:00:13.8]}
47... Kd4 {[%clk 0:00:12.6]} 48. Rxa5 {[%clk 0:00:12.5]} 48... Rc7 {[%clk
0:00:14.2]} 49. Ra8 {[%clk 0:00:10.5]} 49... Rc3+ {[%clk 0:00:15.5]} 50. Kg4
{[%clk 0:00:11.8]} 50... Ke5 {[%clk 0:00:14]} 51. Re8+ {[%clk 0:00:12.1]} 51...
Kd6 {[%clk 0:00:14.3]} 52. Re6+ {[%clk 0:00:13.1]} 52... Kc5 {[%clk 0:00:14.7]}
53. Be4 {[%clk 0:00:14.5]} 53... Nb4 {[%clk 0:00:14]} 54. Kxf4 {[%clk 0:00:15]}
54... Ra3 {[%clk 0:00:14.9]} 55. g4 {[%clk 0:00:16.1]} 55... Rxa4 {[%clk
0:00:15.5]} 56. g5 {[%clk 0:00:15.3]} 56... Ra2 {[%clk 0:00:17.1]} 57. Kg3
{[%clk 0:00:13.3]} 57... Ra3+ {[%clk 0:00:17.9]} 58. f3 {[%clk 0:00:14]} 58...
Kd4 {[%clk 0:00:14]} 59. g6 {[%clk 0:00:14.5]} 59... Ra7 {[%clk 0:00:14.2]} 60.
Kf4 {[%clk 0:00:14.5]} 60... Na2 {[%clk 0:00:10.2]} 61. Rd6+ {[%clk 0:00:13.4]}
61... Kc5 {[%clk 0:00:10.2]} 62. Rd5+ {[%clk 0:00:14.8]} 62... Kc4 {[%clk
0:00:10.2]} 63. Rg5 {[%clk 0:00:14.7]} 63... Rg7 {[%clk 0:00:10.3]} 64. Ke5
{[%clk 0:00:16]} 64... Nb4 {[%clk 0:00:10]} 65. Kf6 {[%clk 0:00:17.4]} 65... Rg8
{[%clk 0:00:11.5]} 66. g7 {[%clk 0:00:18.6]} 66... Kd4 {[%clk 0:00:07.8]} 67.
Kf7 {[%clk 0:00:19.5]} 67... Rc8 {[%clk 0:00:06.6]} 68. g8=Q {[%clk 0:00:20.4]}
68... Rc7+ {[%clk 0:00:08.4]} 69. Ke6 {[%clk 0:00:21.5]} 1-0

[Event "*** Titled Tuesday Blitz"]
[Site "Chess.com"]
[Date "2019.09.03"]
[Round "3"]
[White "area_5"]
[Black "TigranLPetrosyan"]
[Result "1/2-1/2"]
[WhiteElo "2712"]
[BlackElo "2920"]
[TimeControl "180+2"]
[EndTime "15:40:37 PDT"]
[Termination "Game drawn - insufficient material"]

1. e4 {[%clk 0:03:01.9]} 1... g6 {[%clk 0:03:01.1]} 2. d4 {[%clk 0:03:02.3]}
2... Bg7 {[%clk 0:03:03]} 3. Nc3 {[%clk 0:03:03.6]} 3... a6 {[%clk 0:03:04.4]}
4. a4 {[%clk 0:03:03.3]} 4... d6 {[%clk 0:03:05.4]} 5. Bc4 {[%clk 0:03:03.8]}
5... Nf6 {[%clk 0:03:07]} 6. Nf3 {[%clk 0:03:02.8]} 6... O-O {[%clk 0:03:08.5]}
7. h3 {[%clk 0:02:59.1]} 7... c6 {[%clk 0:03:06.5]} 8. Bd3 {[%clk 0:02:52.6]}
8... Qc7 {[%clk 0:03:04.4]} 9. Bf4 {[%clk 0:02:44.1]} 9... Nbd7 {[%clk
0:03:05.3]} 10. Qd2 {[%clk 0:02:28.9]} 10... e5 {[%clk 0:03:05.5]} 11. Bh6
{[%clk 0:02:29.5]} 11... Re8 {[%clk 0:03:05]} 12. O-O {[%clk 0:02:28.8]} 12...
b6 {[%clk 0:02:59.4]} 13. dxe5 {[%clk 0:02:18.7]} 13... dxe5 {[%clk 0:03:01.3]}
14. Bc4 {[%clk 0:02:16]} 14... Nc5 {[%clk 0:02:59.1]} 15. Rfe1 {[%clk
0:02:03.6]} 15... Be6 {[%clk 0:02:53.7]} 16. Bxe6 {[%clk 0:01:53.6]} 16... Nxe6
{[%clk 0:02:55.6]} 17. Bxg7 {[%clk 0:01:46.6]} 17... Kxg7 {[%clk 0:02:57.5]} 18.
Qe3 {[%clk 0:01:46]} 18... a5 {[%clk 0:02:28.8]} 19. Ne2 {[%clk 0:01:42.6]}
19... Nc5 {[%clk 0:02:26]} 20. Ng3 {[%clk 0:01:42.8]} 20... Rad8 {[%clk
0:02:24.9]} 21. Nf5+ {[%clk 0:01:33.2]} 21... Kh8 {[%clk 0:02:21.6]} 22. Qh6
{[%clk 0:01:32.5]} 22... Rg8 {[%clk 0:01:22.4]} 23. Ng5 {[%clk 0:01:27.5]} 23...
Rdf8 {[%clk 0:01:08.4]} 24. Rad1 {[%clk 0:01:15.1]} 24... Ne6 {[%clk 0:01:09.4]}
25. Nxe6 {[%clk 0:00:58.7]} 25... fxe6 {[%clk 0:01:11.3]} 26. Ng3 {[%clk
0:00:59.8]} 26... Rd8 {[%clk 0:01:10]} 27. Qg5 {[%clk 0:00:59.8]} 27... Kg7
{[%clk 0:01:09.8]} 28. Qe3 {[%clk 0:00:45.3]} 28... Rxd1 {[%clk 0:01:02.1]} 29.
Rxd1 {[%clk 0:00:45.7]} 29... Rd8 {[%clk 0:01:04]} 30. Rd2 {[%clk 0:00:40.5]}
30... Kf7 {[%clk 0:01:02.8]} 31. Kh2 {[%clk 0:00:40]} 31... Ke7 {[%clk
0:00:51.2]} 32. Rxd8 {[%clk 0:00:31.8]} 32... Qxd8 {[%clk 0:00:53.1]} 33. c3
{[%clk 0:00:30.4]} 33... Nd7 {[%clk 0:00:27.2]} 34. b4 {[%clk 0:00:27.6]} 34...
Kf7 {[%clk 0:00:26.5]} 35. bxa5 {[%clk 0:00:21.1]} 35... bxa5 {[%clk 0:00:28.4]}
36. Qd2 {[%clk 0:00:21.3]} 36... Qc7 {[%clk 0:00:26.2]} 37. Nf1 {[%clk
0:00:22.4]} 37... Nf6 {[%clk 0:00:26.7]} 38. Qe3 {[%clk 0:00:22.4]} 38... c5
{[%clk 0:00:24.9]} 39. Nd2 {[%clk 0:00:23.3]} 39... c4 {[%clk 0:00:25.9]} 40.
Nf3 {[%clk 0:00:24.3]} 40... Nd7 {[%clk 0:00:25.4]} 41. Qh6 {[%clk 0:00:24.5]}
41... Kg8 {[%clk 0:00:26.3]} 42. Qg5 {[%clk 0:00:22.8]} 42... Kf7 {[%clk
0:00:25.8]} 43. h4 {[%clk 0:00:23.4]} 43... Qc5 {[%clk 0:00:23.4]} 44. Kg1
{[%clk 0:00:17.8]} 44... Qe7 {[%clk 0:00:23.1]} 45. Qh6 {[%clk 0:00:17.6]} 45...
Kg8 {[%clk 0:00:22.8]} 46. h5 {[%clk 0:00:18.9]} 46... Qf8 {[%clk 0:00:20.6]}
47. Qg5 {[%clk 0:00:15.9]} 47... Qf6 {[%clk 0:00:21.6]} 48. Qxf6 {[%clk
0:00:16.4]} 48... Nxf6 {[%clk 0:00:22.8]} 49. hxg6 {[%clk 0:00:17.8]} 49... hxg6
{[%clk 0:00:24.7]} 50. Nxe5 {[%clk 0:00:18.5]} 50... Nxe4 {[%clk 0:00:26.4]} 51.
Nxc4 {[%clk 0:00:19.5]} 51... Nxc3 {[%clk 0:00:28.1]} 52. Nxa5 {[%clk
0:00:20.7]} 52... Nxa4 {[%clk 0:00:29.8]} 53. Nc6 {[%clk 0:00:21.9]} 53... Kf7
{[%clk 0:00:31.7]} 54. Ne5+ {[%clk 0:00:23.1]} 54... Kf6 {[%clk 0:00:33.5]} 55.
Ng4+ {[%clk 0:00:24]} 55... Kf5 {[%clk 0:00:35.2]} 56. Ne3+ {[%clk 0:00:24.8]}
56... Kf4 {[%clk 0:00:36.9]} 57. Kf1 {[%clk 0:00:26]} 57... Nc3 {[%clk
0:00:37.8]} 58. Nc4 {[%clk 0:00:27.1]} 58... Ke4 {[%clk 0:00:36.4]} 59. Nd6+
{[%clk 0:00:27.1]} 59... Kd3 {[%clk 0:00:37.5]} 60. Nf7 {[%clk 0:00:28]} 60...
Kd4 {[%clk 0:00:38.8]} 61. Nh8 {[%clk 0:00:28.9]} 61... g5 {[%clk 0:00:40]} 62.
Nf7 {[%clk 0:00:30.1]} 62... g4 {[%clk 0:00:36.6]} 63. g3 {[%clk 0:00:31.2]}
63... Ke4 {[%clk 0:00:36.4]} 64. Kg2 {[%clk 0:00:29]} 64... Nd5 {[%clk
0:00:35.7]} 65. Nd6+ {[%clk 0:00:28.8]} 65... Ke5 {[%clk 0:00:33.2]} 66. Nf7+
{[%clk 0:00:28.9]} 66... Kf6 {[%clk 0:00:33.9]} 67. Nd6 {[%clk 0:00:29.9]} 67...
Ke5 {[%clk 0:00:35]} 68. Nf7+ {[%clk 0:00:31]} 68... Kf5 {[%clk 0:00:36.6]} 69.
Nd6+ {[%clk 0:00:32.1]} 69... Kg5 {[%clk 0:00:36.9]} 70. Ne4+ {[%clk 0:00:32.5]}
70... Kg6 {[%clk 0:00:37.6]} 71. Nd6 {[%clk 0:00:33]} 71... e5 {[%clk
0:00:38.2]} 72. Ne4 {[%clk 0:00:33]} 72... Kf5 {[%clk 0:00:38.1]} 73. Nd6+
{[%clk 0:00:34]} 73... Ke6 {[%clk 0:00:39.1]} 74. Ne4 {[%clk 0:00:35.2]} 74...
Nf6 {[%clk 0:00:40.6]} 75. Nxf6 {[%clk 0:00:35.6]} 75... Kxf6 {[%clk 0:00:42.5]}
76. f3 {[%clk 0:00:37.1]} 76... Kf5 {[%clk 0:00:44]} 77. Kf2 {[%clk 0:00:38.4]}
77... gxf3 {[%clk 0:00:43.1]} 78. Kxf3 {[%clk 0:00:36.6]} 78... e4+ {[%clk
0:00:45]} 79. Ke3 {[%clk 0:00:37.8]} 79... Kg4 {[%clk 0:00:46.9]} 80. Kxe4
{[%clk 0:00:39.1]} 80... Kxg3 {[%clk 0:00:48.8]} 1/2-1/2

[Event "*** Titled Tuesday Blitz"]
[Site "Chess.com"]
[Date "2019.09.03"]
[Round "3"]
[White "Chigorinetz"]
[Black "Gordima"]
[Result "0-1"]
[WhiteElo "2581"]
[BlackElo "2810"]
[TimeControl "180+2"]
[EndTime "15:40:38 PDT"]
[Termination "Gordima won by resignation"]

1. e4 {[%clk 0:02:50.2]} 1... c5 {[%clk 0:03:00.6]} 2. Nc3 {[%clk 0:02:50.7]}
2... Nc6 {[%clk 0:03:01.8]} 3. Nge2 {[%clk 0:02:52.6]} 3... Nf6 {[%clk
0:02:59.5]} 4. g3 {[%clk 0:02:52.2]} 4... e5 {[%clk 0:02:59.2]} 5. Bg2 {[%clk
0:02:51.9]} 5... Be7 {[%clk 0:03:00.6]} 6. O-O {[%clk 0:02:53.3]} 6... O-O
{[%clk 0:03:02.1]} 7. f4 {[%clk 0:02:54.6]} 7... exf4 {[%clk 0:03:00.9]} 8. gxf4
{[%clk 0:02:53.6]} 8... d6 {[%clk 0:03:01.3]} 9. d3 {[%clk 0:02:53.5]} 9... Rb8
{[%clk 0:02:50.7]} 10. a4 {[%clk 0:02:50.7]} 10... Bg4 {[%clk 0:02:36.2]} 11.
Be3 {[%clk 0:02:42]} 11... Qd7 {[%clk 0:02:34.8]} 12. Qd2 {[%clk 0:02:40]} 12...
Bh3 {[%clk 0:02:35.3]} 13. Ng3 {[%clk 0:02:39.4]} 13... Rfe8 {[%clk 0:02:11.9]}
14. Rae1 {[%clk 0:02:37.9]} 14... Bf8 {[%clk 0:02:11.4]} 15. Kh1 {[%clk
0:02:10.5]} 15... a6 {[%clk 0:02:10.5]} 16. Bg1 {[%clk 0:02:02.5]} 16... b5
{[%clk 0:02:03.8]} 17. axb5 {[%clk 0:02:02.2]} 17... axb5 {[%clk 0:02:05.7]} 18.
Bxh3 {[%clk 0:01:45]} 18... Qxh3 {[%clk 0:02:06.2]} 19. Qg2 {[%clk 0:01:46.9]}
19... Qxg2+ {[%clk 0:02:05.1]} 20. Kxg2 {[%clk 0:01:48.2]} 20... b4 {[%clk
0:02:01]} 21. Nce2 {[%clk 0:01:44.9]} 21... d5 {[%clk 0:02:01.1]} 22. e5 {[%clk
0:01:45.3]} 22... Nd7 {[%clk 0:01:58.9]} 23. Ra1 {[%clk 0:01:45.4]} 23... Ra8
{[%clk 0:01:58.2]} 24. Nf5 {[%clk 0:01:46.1]} 24... d4 {[%clk 0:01:14.8]} 25. b3
{[%clk 0:01:38]} 25... f6 {[%clk 0:01:08.5]} 26. e6 {[%clk 0:01:00.4]} 26...
Rxa1 {[%clk 0:01:05]} 27. Rxa1 {[%clk 0:00:57.9]} 27... Rxe6 {[%clk 0:01:04.7]}
28. Neg3 {[%clk 0:00:59]} 28... g6 {[%clk 0:01:03.1]} 29. Nh4 {[%clk 0:00:59.8]}
29... f5 {[%clk 0:00:56.7]} 30. Nf3 {[%clk 0:00:59.5]} 30... Be7 {[%clk
0:00:52.1]} 31. h4 {[%clk 0:00:59.8]} 31... Nb6 {[%clk 0:00:47]} 32. Ra6 {[%clk
0:00:56.2]} 32... Nd5 {[%clk 0:00:46.7]} 33. Ng5 {[%clk 0:00:53.2]} 33... Nxf4+
{[%clk 0:00:45.4]} 34. Kf3 {[%clk 0:00:53.6]} 34... Bxg5 {[%clk 0:00:46.2]} 35.
hxg5 {[%clk 0:00:54]} 35... Nh3 {[%clk 0:00:46.6]} 36. Bh2 {[%clk 0:00:52.8]}
36... Nxg5+ {[%clk 0:00:47.7]} 37. Kf2 {[%clk 0:00:53]} 37... Nh3+ {[%clk
0:00:47.1]} 38. Kf1 {[%clk 0:00:51.6]} 38... Kf7 {[%clk 0:00:45.1]} 39. Ne2
{[%clk 0:00:51.5]} 39... g5 {[%clk 0:00:44.1]} 40. Rb6 {[%clk 0:00:52.4]} 40...
f4 {[%clk 0:00:40.1]} 41. Rb5 {[%clk 0:00:53.3]} 41... Re5 {[%clk 0:00:39.1]}
42. Rb6 {[%clk 0:00:49.1]} 42... Ne7 {[%clk 0:00:40.2]} 43. Rh6 {[%clk
0:00:48.3]} 43... g4 {[%clk 0:00:31.9]} 44. Rxh7+ {[%clk 0:00:49.1]} 44... Ke6
{[%clk 0:00:32.9]} 45. Rh4 {[%clk 0:00:49.1]} 45... Rg5 {[%clk 0:00:15.6]} 46.
Bxf4 {[%clk 0:00:43.1]} 46... Rf5 {[%clk 0:00:16]} 47. Rxg4 {[%clk 0:00:43.5]}
47... Nd5 {[%clk 0:00:16.8]} 48. Rg6+ {[%clk 0:00:41.6]} 48... Kf7 {[%clk
0:00:16]} 49. Rc6 {[%clk 0:00:41]} 49... Nhxf4 {[%clk 0:00:15.3]} 50. Ng3 {[%clk
0:00:42.9]} 50... Re5 {[%clk 0:00:11.3]} 51. Rxc5 {[%clk 0:00:42.8]} 51... Ne3+
{[%clk 0:00:12.1]} 52. Kf2 {[%clk 0:00:44.3]} 52... Rxc5 {[%clk 0:00:13.6]} 53.
Kf3 {[%clk 0:00:45.5]} 53... Nfd5 {[%clk 0:00:13.6]} 54. Ne2 {[%clk 0:00:45.4]}
54... Rxc2 {[%clk 0:00:14.2]} 55. Nxd4 {[%clk 0:00:46.7]} 55... Rc3 {[%clk
0:00:15.7]} 56. Ke4 {[%clk 0:00:47.2]} 56... Rc1 {[%clk 0:00:12.6]} 57. Nf3
{[%clk 0:00:47.8]} 57... Ke7 {[%clk 0:00:12.6]} 58. Kd4 {[%clk 0:00:48.7]} 58...
Rb1 {[%clk 0:00:12.5]} 59. Ne5 {[%clk 0:00:48.1]} 59... Rxb3 {[%clk 0:00:12.6]}
60. Nc6+ {[%clk 0:00:49]} 60... Kd6 {[%clk 0:00:14]} 61. Ne5 {[%clk 0:00:50]}
61... Rb1 {[%clk 0:00:10.8]} 62. Nf7+ {[%clk 0:00:50.6]} 62... Ke6 {[%clk
0:00:11.1]} 63. Ng5+ {[%clk 0:00:50.9]} 63... Kf5 {[%clk 0:00:12.6]} 64. Ne4
{[%clk 0:00:49.3]} 64... b3 {[%clk 0:00:11]} 65. Nd2 {[%clk 0:00:50.1]} 65...
Rb2 {[%clk 0:00:12]} 66. Nc4 {[%clk 0:00:49.7]} 66... Rh2 {[%clk 0:00:12.7]} 67.
Nd6+ {[%clk 0:00:48.5]} 67... Ke6 {[%clk 0:00:13.4]} 68. Nc4 {[%clk 0:00:48.4]}
68... b2 {[%clk 0:00:14.3]} 69. Na3 {[%clk 0:00:48.3]} 69... Nc2+ {[%clk
0:00:14.3]} 70. Nxc2 {[%clk 0:00:44.2]} 70... Rxc2 {[%clk 0:00:13.2]} 0-1